[Event "*** SCC Grand Prix: Titled Tuesday Blitz"]
[Site "Chess.com"]
[Date "2020.06.23"]
[Round "9"]
[White "Gerodot71"]
[Black "Mikhail_Golubev"]
[Result "0-1"]
[WhiteElo "2416"]
[BlackElo "2582"]
[TimeControl "180+1"]
[EndTime "11:45:06 PDT"]
[Termination "Mikhail_Golubev won by checkmate"]

1. d4 {[%clk 0:03:00.9]} 1... Nf6 {[%clk 0:02:59.3]} 2. c4 {[%clk 0:03:01.4]}
2... g6 {[%clk 0:02:59.5]} 3. Nc3 {[%clk 0:03:01.4]} 3... Bg7 {[%clk 0:03:00]}
4. e4 {[%clk 0:03:01.5]} 4... d6 {[%clk 0:03:00.4]} 5. Be2 {[%clk 0:03:01.9]}
5... O-O {[%clk 0:03:00]} 6. Be3 {[%clk 0:03:01.7]} 6... Na6 {[%clk 0:02:45]} 7.
g4 {[%clk 0:02:57.5]} 7... c5 {[%clk 0:02:33.1]} 8. g5 {[%clk 0:02:57]} 8... Nd7
{[%clk 0:02:28.4]} 9. Nf3 {[%clk 0:02:54]} 9... cxd4 {[%clk 0:02:20.7]} 10. Nxd4
{[%clk 0:02:54.9]} 10... Nac5 {[%clk 0:02:21.1]} 11. Qd2 {[%clk 0:02:53]} 11...
a6 {[%clk 0:02:16.8]} 12. O-O-O {[%clk 0:02:52]} 12... b5 {[%clk 0:02:14.7]} 13.
Nd5 {[%clk 0:02:24.6]} 13... Bb7 {[%clk 0:02:04.7]} 14. f3 {[%clk 0:02:21.1]}
14... bxc4 {[%clk 0:02:04.1]} 15. Bxc4 {[%clk 0:02:22]} 15... Rc8 {[%clk
0:02:03.5]} 16. Kb1 {[%clk 0:02:18.3]} 16... Nxe4 {[%clk 0:02:00.8]} 17. fxe4
{[%clk 0:02:19.2]} 17... Rxc4 {[%clk 0:02:00.2]} 18. h4 {[%clk 0:02:19.5]} 18...
Nc5 {[%clk 0:01:53.9]} 19. Qe2 {[%clk 0:02:05.3]} 19... Bxd5 {[%clk 0:01:21.3]}
20. exd5 {[%clk 0:02:03.9]} 20... Ra4 {[%clk 0:01:18]} 21. h5 {[%clk 0:01:59.3]}
21... Qa5 {[%clk 0:01:09.4]} 22. b3 {[%clk 0:01:55.4]} 22... Rb8 {[%clk
0:01:07.9]} 23. hxg6 {[%clk 0:01:51.1]} 23... Nxb3 {[%clk 0:01:02.2]} 24. gxf7+
{[%clk 0:01:42.2]} 24... Kxf7 {[%clk 0:00:16.3]} 25. Qh5+ {[%clk 0:01:33.5]}
25... Kg8 {[%clk 0:00:16.4]} 26. Qxh7+ {[%clk 0:01:30]} 26... Kf8 {[%clk
0:00:16.6]} 27. Rhf1+ {[%clk 0:00:45.8]} 27... Ke8 {[%clk 0:00:15.5]} 28. Nxb3
{[%clk 0:00:46.4]} 28... Rxb3+ {[%clk 0:00:13.8]} 29. axb3 {[%clk 0:00:47.3]}
29... Ra1+ {[%clk 0:00:13.5]} 30. Kc2 {[%clk 0:00:47.9]} 30... Qc3# {[%clk
0:00:13.7]} 0-1

[Event "*** SCC Grand Prix: Titled Tuesday Blitz"]
[Site "Chess.com"]
[Date "2020.06.23"]
[Round "9"]
[White "justantan"]
[Black "Squirlolz"]
[Result "1-0"]
[WhiteElo "2775"]
[BlackElo "2512"]
[TimeControl "180+1"]
[EndTime "11:45:07 PDT"]
[Termination "justantan won by resignation"]

1. Nf3 {[%clk 0:03:00.9]} 1... c5 {[%clk 0:02:58.6]} 2. e4 {[%clk 0:02:59.9]}
2... a6 {[%clk 0:02:58.7]} 3. c3 {[%clk 0:02:56.7]} 3... d5 {[%clk 0:02:57.9]}
4. exd5 {[%clk 0:02:56.5]} 4... Qxd5 {[%clk 0:02:58.2]} 5. Na3 {[%clk
0:02:54.6]} 5... Nf6 {[%clk 0:02:56]} 6. Nc4 {[%clk 0:02:53.4]} 6... Qd8 {[%clk
0:02:47.1]} 7. d4 {[%clk 0:02:52.8]} 7... e6 {[%clk 0:02:41.1]} 8. Bg5 {[%clk
0:02:51.9]} 8... cxd4 {[%clk 0:02:39.5]} 9. Qxd4 {[%clk 0:02:50.9]} 9... Qxd4
{[%clk 0:02:36.2]} 10. Nxd4 {[%clk 0:02:50.8]} 10... Nbd7 {[%clk 0:02:36.4]} 11.
O-O-O {[%clk 0:02:50]} 11... b6 {[%clk 0:02:26.4]} 12. Re1 {[%clk 0:02:37.1]}
12... Be7 {[%clk 0:02:13.2]} 13. Nc6 {[%clk 0:02:36.5]} 13... Bb7 {[%clk
0:02:03.1]} 14. Nxe7 {[%clk 0:02:35.6]} 14... Kxe7 {[%clk 0:02:04]} 15. f3
{[%clk 0:02:34.2]} 15... Rhc8 {[%clk 0:02:01.8]} 16. Be2 {[%clk 0:02:31.6]}
16... Nc5 {[%clk 0:01:52.2]} 17. Nxb6 {[%clk 0:02:30.3]} 17... a5 {[%clk
0:01:42.8]} 18. Nxa8 {[%clk 0:02:21.7]} 18... Bxa8 {[%clk 0:01:43.7]} 19. Rd1
{[%clk 0:02:19.6]} 19... h6 {[%clk 0:01:41.2]} 20. Bxf6+ {[%clk 0:02:18]} 20...
Kxf6 {[%clk 0:01:41.7]} 21. Rd4 {[%clk 0:02:16.7]} 21... g5 {[%clk 0:01:41.5]}
22. h4 {[%clk 0:02:15.4]} 22... Ke5 {[%clk 0:01:39.4]} 23. hxg5 {[%clk
0:02:15.2]} 23... hxg5 {[%clk 0:01:40.3]} 24. Rh5 {[%clk 0:02:12.5]} 24... f6
{[%clk 0:01:37.5]} 25. f4+ {[%clk 0:02:11.5]} 25... Kf5 {[%clk 0:01:38.1]} 26.
g4+ {[%clk 0:01:48.2]} 26... Kg6 {[%clk 0:01:37]} 27. fxg5 {[%clk 0:01:26.8]}
27... fxg5 {[%clk 0:01:34.9]} 28. Bd1 {[%clk 0:01:25.1]} 28... Kf6 {[%clk
0:01:15.7]} 29. Bc2 {[%clk 0:01:23.1]} 29... Bd5 {[%clk 0:01:07.7]} 30. b3
{[%clk 0:01:14.9]} 30... Bc6 {[%clk 0:00:58]} 31. Rh6+ {[%clk 0:00:56.6]} 31...
Kf7 {[%clk 0:00:46.4]} 32. Kd2 {[%clk 0:00:45.3]} 32... Nd7 {[%clk 0:00:41.2]}
33. Rh7+ {[%clk 0:00:42.1]} 33... Ke8 {[%clk 0:00:37.5]} 34. Bg6+ {[%clk
0:00:38.7]} 34... Kd8 {[%clk 0:00:37.4]} 35. Be4 {[%clk 0:00:36.6]} 1-0

[Event "*** SCC Grand Prix: Titled Tuesday Blitz"]
[Site "Chess.com"]
[Date "2020.06.23"]
[Round "9"]
[White "annamaja"]
[Black "djano"]
[Result "0-1"]
[WhiteElo "2242"]
[BlackElo "2460"]
[TimeControl "180+1"]
[EndTime "11:45:18 PDT"]
[Termination "djano won on time"]

1. e4 {[%clk 0:03:00.9]} 1... c5 {[%clk 0:02:58.7]} 2. Nf3 {[%clk 0:03:00.7]}
2... a6 {[%clk 0:02:57]} 3. c4 {[%clk 0:02:58.1]} 3... g6 {[%clk 0:02:50.1]} 4.
Nc3 {[%clk 0:02:57.1]} 4... Bg7 {[%clk 0:02:49.8]} 5. d4 {[%clk 0:02:57.4]} 5...
cxd4 {[%clk 0:02:49.6]} 6. Nxd4 {[%clk 0:02:58.3]} 6... e6 {[%clk 0:02:47.6]} 7.
Be3 {[%clk 0:02:57.6]} 7... Ne7 {[%clk 0:02:47.7]} 8. Be2 {[%clk 0:02:56.6]}
8... Nbc6 {[%clk 0:02:47.5]} 9. Nxc6 {[%clk 0:02:50.9]} 9... Nxc6 {[%clk
0:02:37.6]} 10. Bc5 {[%clk 0:02:49.3]} 10... Qa5 {[%clk 0:02:27.9]} 11. Qd6
{[%clk 0:02:24.5]} 11... Bf8 {[%clk 0:02:21.3]} 12. Qxf8+ {[%clk 0:01:25.1]}
12... Rxf8 {[%clk 0:02:20.3]} 13. Bxf8 {[%clk 0:01:25.7]} 13... Kxf8 {[%clk
0:02:20.7]} 14. f4 {[%clk 0:01:24.7]} 14... Qb6 {[%clk 0:02:16.6]} 15. O-O-O
{[%clk 0:01:17.2]} 15... Qe3+ {[%clk 0:02:16.3]} 16. Kb1 {[%clk 0:01:15]} 16...
Qxf4 {[%clk 0:02:16.9]} 17. g3 {[%clk 0:01:10.4]} 17... Qe5 {[%clk 0:02:16.9]}
18. Rhf1 {[%clk 0:01:08.5]} 18... Kg7 {[%clk 0:02:17]} 19. Rd3 {[%clk
0:01:01.2]} 19... Qc5 {[%clk 0:02:03.2]} 20. Rdf3 {[%clk 0:00:55.2]} 20... Ne5
{[%clk 0:02:03.3]} 21. Rf4 {[%clk 0:00:39.3]} 21... b6 {[%clk 0:02:00.2]} 22.
Na4 {[%clk 0:00:20.6]} 22... Qc6 {[%clk 0:01:58.4]} 23. b3 {[%clk 0:00:20.5]}
23... b5 {[%clk 0:01:52]} 24. Nb2 {[%clk 0:00:18.9]} 24... Bb7 {[%clk
0:01:49.1]} 25. Nd3 {[%clk 0:00:10.6]} 25... Qd6 {[%clk 0:01:26.3]} 26. c5
{[%clk 0:00:07.3]} 26... Qd4 {[%clk 0:01:17.3]} 27. Nxe5 {[%clk 0:00:06.7]}
27... Qxe5 {[%clk 0:01:18.2]} 28. Rxf7+ {[%clk 0:00:07.2]} 28... Kg8 {[%clk
0:01:18.8]} 29. Rxd7 {[%clk 0:00:05.8]} 29... Bxe4+ {[%clk 0:01:18.4]} 30. Bd3
{[%clk 0:00:05.4]} 30... Bxd3+ {[%clk 0:01:08.3]} 31. Rxd3 {[%clk 0:00:06.3]}
31... Qxc5 {[%clk 0:01:06]} 32. Rd7 {[%clk 0:00:04.5]} 32... Rf8 {[%clk
0:01:04.2]} 33. Rfd1 {[%clk 0:00:03.5]} 33... Rf2 {[%clk 0:00:59.4]} 34. Rd8+
{[%clk 0:00:02.7]} 34... Kg7 {[%clk 0:00:59.8]} 35. R8d7+ {[%clk 0:00:02.3]}
35... Kh6 {[%clk 0:00:59.9]} 0-1

[Event "*** SCC Grand Prix: Titled Tuesday Blitz"]
[Site "Chess.com"]
[Date "2020.06.23"]
[Round "9"]
[White "WiktoriaPOL"]
[Black "felipelobo"]
[Result "1-0"]
[WhiteElo "1950"]
[BlackElo "2085"]
[TimeControl "180+1"]
[EndTime "11:45:23 PDT"]
[Termination "WiktoriaPOL won by resignation"]

1. c4 {[%clk 0:03:00.9]} 1... Nf6 {[%clk 0:02:58.5]} 2. Nc3 {[%clk 0:03:00.1]}
2... e6 {[%clk 0:02:56.7]} 3. e4 {[%clk 0:02:59.6]} 3... c5 {[%clk 0:02:55.6]}
4. e5 {[%clk 0:02:58]} 4... Ng8 {[%clk 0:02:49.2]} 5. Nf3 {[%clk 0:02:57.8]}
5... d6 {[%clk 0:02:49.1]} 6. exd6 {[%clk 0:02:56.5]} 6... Bxd6 {[%clk
0:02:48.1]} 7. d4 {[%clk 0:02:56.2]} 7... cxd4 {[%clk 0:02:44]} 8. Qxd4 {[%clk
0:02:53.7]} 8... Nf6 {[%clk 0:02:40.5]} 9. Bg5 {[%clk 0:02:49.2]} 9... Be7
{[%clk 0:02:24.9]} 10. Qxd8+ {[%clk 0:02:46.1]} 10... Bxd8 {[%clk 0:02:25.8]}
11. O-O-O {[%clk 0:02:45.1]} 11... O-O {[%clk 0:02:19.9]} 12. Nb5 {[%clk
0:02:44.5]} 12... Nc6 {[%clk 0:02:13.9]} 13. Nd6 {[%clk 0:02:41.3]} 13... h6
{[%clk 0:02:07]} 14. Bh4 {[%clk 0:02:36]} 14... Be7 {[%clk 0:01:50.7]} 15. Bxf6
{[%clk 0:02:24.7]} 15... Bxf6 {[%clk 0:01:47.6]} 16. Nd2 {[%clk 0:02:23.7]}
16... Bd4 {[%clk 0:01:19]} 17. f3 {[%clk 0:02:14.9]} 17... e5 {[%clk 0:01:01.9]}
18. Nb3 {[%clk 0:02:11.4]} 18... Be6 {[%clk 0:00:54.8]} 19. Nxd4 {[%clk
0:02:05.8]} 19... Nxd4 {[%clk 0:00:55.7]} 20. Nxb7 {[%clk 0:01:58.1]} 20... Rab8
{[%clk 0:00:43.2]} 21. Nd6 {[%clk 0:01:56.6]} 21... Rfd8 {[%clk 0:00:40.7]} 22.
Ne4 {[%clk 0:01:49.5]} 22... Rbc8 {[%clk 0:00:32.9]} 23. b3 {[%clk 0:01:47.1]}
23... a5 {[%clk 0:00:30.3]} 24. Kb2 {[%clk 0:01:42]} 24... a4 {[%clk 0:00:29.4]}
25. Bd3 {[%clk 0:01:35.7]} 25... axb3 {[%clk 0:00:29]} 26. axb3 {[%clk
0:01:35.2]} 26... Rb8 {[%clk 0:00:29]} 27. Nd2 {[%clk 0:01:27.9]} 27... Rdc8
{[%clk 0:00:27.9]} 28. Rc1 {[%clk 0:01:15.7]} 28... Rc7 {[%clk 0:00:26]} 29. Rc3
{[%clk 0:01:14.3]} 29... Rcb7 {[%clk 0:00:24.6]} 30. Ra1 {[%clk 0:01:11.9]}
30... Ne2 {[%clk 0:00:23.5]} 31. Bxe2 {[%clk 0:01:05.9]} 31... Rd7 {[%clk
0:00:18]} 32. Rd3 {[%clk 0:01:04.3]} 32... Rdb7 {[%clk 0:00:15.2]} 33. Kc3
{[%clk 0:01:00.3]} 33... Bf5 {[%clk 0:00:13.4]} 34. Rd5 {[%clk 0:00:57.4]} 34...
f6 {[%clk 0:00:12.5]} 35. Bd3 {[%clk 0:00:54]} 35... Be6 {[%clk 0:00:12.4]} 36.
Rd6 {[%clk 0:00:53]} 36... Kf8 {[%clk 0:00:11.6]} 1-0

[Event "*** SCC Grand Prix: Titled Tuesday Blitz"]
[Site "Chess.com"]
[Date "2020.06.23"]
[Round "9"]
[White "dopolian"]
[Black "NMZanette"]
[Result "1-0"]
[WhiteElo "2359"]
[BlackElo "2164"]
[TimeControl "180+1"]
[EndTime "11:45:31 PDT"]
[Termination "dopolian won by resignation"]

1. Nf3 {[%clk 0:03:00.9]} 1... f5 {[%clk 0:02:59.7]} 2. d3 {[%clk 0:03:00.7]}
2... Nc6 {[%clk 0:02:55]} 3. Nc3 {[%clk 0:02:58.5]} 3... e5 {[%clk 0:02:54.6]}
4. e4 {[%clk 0:02:58.2]} 4... Nf6 {[%clk 0:02:54.3]} 5. exf5 {[%clk 0:02:54]}
5... d5 {[%clk 0:02:53.9]} 6. d4 {[%clk 0:02:54.7]} 6... e4 {[%clk 0:02:50.5]}
7. Ne5 {[%clk 0:02:54.3]} 7... Bxf5 {[%clk 0:02:50.2]} 8. Bb5 {[%clk 0:02:53.9]}
8... Bd7 {[%clk 0:02:49.7]} 9. O-O {[%clk 0:02:53.1]} 9... Nxe5 {[%clk
0:02:45.9]} 10. dxe5 {[%clk 0:02:52.7]} 10... Bxb5 {[%clk 0:02:45.4]} 11. Nxb5
{[%clk 0:02:09.8]} 11... c6 {[%clk 0:02:18]} 12. exf6 {[%clk 0:02:06.6]} 12...
cxb5 {[%clk 0:02:16.9]} 13. fxg7 {[%clk 0:01:54]} 13... Bxg7 {[%clk 0:02:16.1]}
14. Qh5+ {[%clk 0:01:54.2]} 14... Kf8 {[%clk 0:02:15]} 15. Rd1 {[%clk 0:01:46]}
15... d4 {[%clk 0:01:33.2]} 16. Bg5 {[%clk 0:01:25.4]} 16... Qe8 {[%clk
0:01:23.6]} 17. Qg4 {[%clk 0:01:14.7]} 17... h5 {[%clk 0:01:11.6]} 18. Qf5+
{[%clk 0:01:11.1]} 18... Kg8 {[%clk 0:01:11.7]} 19. Re1 {[%clk 0:01:09]} 19...
Qc6 {[%clk 0:00:50.2]} 20. Rxe4 {[%clk 0:01:02.9]} 20... Rf8 {[%clk 0:00:50.2]}
21. Qe6+ {[%clk 0:00:57.6]} 21... Qxe6 {[%clk 0:00:49.7]} 22. Rxe6 {[%clk
0:00:58.5]} 22... Rf7 {[%clk 0:00:47.4]} 23. Rae1 {[%clk 0:00:40.5]} 23... Kh7
{[%clk 0:00:47.5]} 24. Re7 {[%clk 0:00:40.5]} 24... Rhf8 {[%clk 0:00:47.7]} 25.
f3 {[%clk 0:00:38.2]} 25... Kg6 {[%clk 0:00:47.5]} 26. Bd2 {[%clk 0:00:35.7]}
26... Rxe7 {[%clk 0:00:47]} 27. Rxe7 {[%clk 0:00:36.6]} 27... Rf7 {[%clk
0:00:47.5]} 28. Rxf7 {[%clk 0:00:36.5]} 28... Kxf7 {[%clk 0:00:47.7]} 29. b3
{[%clk 0:00:36.3]} 29... Ke6 {[%clk 0:00:46.7]} 30. Kf1 {[%clk 0:00:36.4]} 30...
Kd5 {[%clk 0:00:46.9]} 31. Ke2 {[%clk 0:00:36.3]} 31... Be5 {[%clk 0:00:47.3]}
32. f4 {[%clk 0:00:34]} 32... Bd6 {[%clk 0:00:46.7]} 33. Kd3 {[%clk 0:00:34.4]}
33... b6 {[%clk 0:00:43.8]} 34. g3 {[%clk 0:00:34.2]} 34... a5 {[%clk
0:00:43.1]} 35. h3 {[%clk 0:00:34.5]} 35... a4 {[%clk 0:00:43.3]} 36. g4 {[%clk
0:00:34.7]} 36... axb3 {[%clk 0:00:43.2]} 37. axb3 {[%clk 0:00:35.6]} 37... hxg4
{[%clk 0:00:43.6]} 38. hxg4 {[%clk 0:00:36.1]} 38... Bc7 {[%clk 0:00:41.8]} 39.
f5 {[%clk 0:00:34.3]} 39... Be5 {[%clk 0:00:41.6]} 40. g5 {[%clk 0:00:34.2]}
40... Bh8 {[%clk 0:00:40.4]} 41. f6 {[%clk 0:00:33]} 41... Ke6 {[%clk
0:00:40.6]} 42. Kxd4 {[%clk 0:00:32.5]} 42... Kf5 {[%clk 0:00:36.2]} 43. Kd5
{[%clk 0:00:32.4]} 1-0

[Event "*** SCC Grand Prix: Titled Tuesday Blitz"]
[Site "Chess.com"]
[Date "2020.06.23"]
[Round "9"]
[White "TST2014"]
[Black "Reader777"]
[Result "0-1"]
[WhiteElo "2524"]
[BlackElo "2694"]
[TimeControl "180+1"]
[EndTime "11:45:40 PDT"]
[Termination "Reader777 won on time"]

1. d4 {[%clk 0:03:00.9]} 1... Nf6 {[%clk 0:02:59.5]} 2. c4 {[%clk 0:03:00.2]}
2... e6 {[%clk 0:02:59.7]} 3. Nf3 {[%clk 0:02:59.8]} 3... c5 {[%clk 0:02:59.1]}
4. e3 {[%clk 0:02:59.1]} 4... cxd4 {[%clk 0:02:58.4]} 5. exd4 {[%clk 0:02:58.9]}
5... d5 {[%clk 0:02:59.1]} 6. Nc3 {[%clk 0:02:58.6]} 6... Nc6 {[%clk 0:02:58.5]}
7. Bd3 {[%clk 0:02:57.2]} 7... Be7 {[%clk 0:02:57.1]} 8. O-O {[%clk 0:02:56.5]}
8... O-O {[%clk 0:02:57.1]} 9. a3 {[%clk 0:02:53.3]} 9... b6 {[%clk 0:02:54.4]}
10. cxd5 {[%clk 0:02:42.6]} 10... Nxd5 {[%clk 0:02:53]} 11. Qe2 {[%clk
0:02:36.5]} 11... Bb7 {[%clk 0:02:50.5]} 12. Rd1 {[%clk 0:02:33.7]} 12... Nxc3
{[%clk 0:02:47.2]} 13. bxc3 {[%clk 0:02:33.2]} 13... Na5 {[%clk 0:02:46.5]} 14.
Bb2 {[%clk 0:02:19]} 14... Rc8 {[%clk 0:02:42.2]} 15. Ne5 {[%clk 0:02:11.3]}
15... Bf6 {[%clk 0:02:32.4]} 16. c4 {[%clk 0:02:02.8]} 16... g6 {[%clk
0:02:26.3]} 17. Ng4 {[%clk 0:01:49.4]} 17... Bg7 {[%clk 0:02:21.7]} 18. d5
{[%clk 0:01:42]} 18... exd5 {[%clk 0:02:17.5]} 19. Bxg7 {[%clk 0:01:41]} 19...
Kxg7 {[%clk 0:02:17.3]} 20. Qb2+ {[%clk 0:01:41.5]} 20... d4 {[%clk 0:02:14.4]}
21. Be2 {[%clk 0:01:10.1]} 21... Nxc4 {[%clk 0:02:07.2]} 22. Qxd4+ {[%clk
0:00:49.3]} 22... Qxd4 {[%clk 0:02:06.5]} 23. Rxd4 {[%clk 0:00:50.2]} 23... Na5
{[%clk 0:02:06.7]} 24. Rd7 {[%clk 0:00:46]} 24... Rfd8 {[%clk 0:02:04.5]} 25.
Rxd8 {[%clk 0:00:39.8]} 25... Rxd8 {[%clk 0:02:04.3]} 26. Ne3 {[%clk 0:00:39.2]}
26... Rd2 {[%clk 0:02:02.5]} 27. Bb5 {[%clk 0:00:36.3]} 27... Nb3 {[%clk
0:02:00.2]} 28. Rd1 {[%clk 0:00:31.2]} 28... Rxd1+ {[%clk 0:01:55.2]} 29. Nxd1
{[%clk 0:00:30.7]} 29... Nd4 {[%clk 0:01:55.8]} 30. Bc4 {[%clk 0:00:29.4]} 30...
Bc6 {[%clk 0:01:50.5]} 31. Nc3 {[%clk 0:00:26.2]} 31... b5 {[%clk 0:01:42.4]}
32. Bd3 {[%clk 0:00:25.9]} 32... a5 {[%clk 0:01:42.5]} 33. f3 {[%clk 0:00:25.1]}
33... b4 {[%clk 0:01:40.6]} 34. axb4 {[%clk 0:00:25]} 34... axb4 {[%clk
0:01:41.5]} 35. Nd1 {[%clk 0:00:23.5]} 35... Kf6 {[%clk 0:01:40.2]} 36. Kf2
{[%clk 0:00:23.3]} 36... Ke5 {[%clk 0:01:40.4]} 37. Ke3 {[%clk 0:00:23.5]} 37...
Ne6 {[%clk 0:01:39.7]} 38. g3 {[%clk 0:00:21.5]} 38... Kd5 {[%clk 0:01:34.1]}
39. Nb2 {[%clk 0:00:19.8]} 39... Kc5 {[%clk 0:01:33.7]} 40. h4 {[%clk
0:00:17.6]} 40... Nd4 {[%clk 0:01:32.7]} 41. g4 {[%clk 0:00:15.7]} 41... Nxf3
{[%clk 0:01:30]} 42. Be4 {[%clk 0:00:15.2]} 42... Bxe4 {[%clk 0:01:29.6]} 43.
Kxe4 {[%clk 0:00:15.8]} 43... Nxh4 {[%clk 0:01:29.4]} 44. Nd3+ {[%clk
0:00:16.2]} 44... Kc4 {[%clk 0:01:29.3]} 45. Ne5+ {[%clk 0:00:15.9]} 45... Kc3
{[%clk 0:01:29.6]} 46. Nd7 {[%clk 0:00:12.4]} 46... f5+ {[%clk 0:01:27.2]} 47.
gxf5 {[%clk 0:00:11.7]} 47... Nxf5 {[%clk 0:01:28.1]} 48. Nc5 {[%clk 0:00:10.9]}
48... b3 {[%clk 0:01:28.1]} 49. Na4+ {[%clk 0:00:10.8]} 49... Kc2 {[%clk
0:01:27.9]} 50. Kf4 {[%clk 0:00:11.4]} 50... b2 {[%clk 0:01:27.8]} 51. Nxb2
{[%clk 0:00:10.5]} 51... Kxb2 {[%clk 0:01:28.7]} 52. Kg5 {[%clk 0:00:11.3]}
52... h5 {[%clk 0:01:28.9]} 0-1

[Event "*** SCC Grand Prix: Titled Tuesday Blitz"]
[Site "Chess.com"]
[Date "2020.06.23"]
[Round "9"]
[White "MVM2008"]
[Black "angryhorse9"]
[Result "0-1"]
[WhiteElo "2100"]
[BlackElo "2452"]
[TimeControl "180+1"]
[EndTime "11:45:46 PDT"]
[Termination "angryhorse9 won by resignation"]

1. e4 {[%clk 0:03:00.9]} 1... c5 {[%clk 0:03:00.1]} 2. Nf3 {[%clk 0:03:00.7]}
2... Nc6 {[%clk 0:02:59.4]} 3. d4 {[%clk 0:02:59.8]} 3... cxd4 {[%clk
0:03:00.3]} 4. c3 {[%clk 0:02:58.9]} 4... Nf6 {[%clk 0:03:00.6]} 5. e5 {[%clk
0:02:58]} 5... Nd5 {[%clk 0:03:00.5]} 6. cxd4 {[%clk 0:02:58.6]} 6... d6 {[%clk
0:03:00.2]} 7. exd6 {[%clk 0:02:56.9]} 7... e6 {[%clk 0:02:59.6]} 8. Nc3 {[%clk
0:02:56.4]} 8... Bxd6 {[%clk 0:02:58.7]} 9. Bd3 {[%clk 0:02:55.5]} 9... O-O
{[%clk 0:02:59.1]} 10. Qe2 {[%clk 0:02:47]} 10... Nce7 {[%clk 0:02:48.9]} 11.
Ne4 {[%clk 0:02:32.8]} 11... Nf4 {[%clk 0:02:46.5]} 12. Bxf4 {[%clk 0:02:25.1]}
12... Bxf4 {[%clk 0:02:47.4]} 13. g3 {[%clk 0:02:20.3]} 13... Bd6 {[%clk
0:02:41.1]} 14. Nfg5 {[%clk 0:02:15.2]} 14... Bb4+ {[%clk 0:02:33.5]} 15. Kf1
{[%clk 0:02:13.4]} 15... h6 {[%clk 0:02:31.8]} 16. Qh5 {[%clk 0:02:05.5]} 16...
Nf5 {[%clk 0:02:25.2]} 17. Rd1 {[%clk 0:01:54.6]} 17... hxg5 {[%clk 0:02:17.7]}
18. Nxg5 {[%clk 0:01:51.3]} 18... Nh6 {[%clk 0:02:18.3]} 19. Bh7+ {[%clk
0:01:45.2]} 19... Kh8 {[%clk 0:02:16.9]} 20. Bg6 {[%clk 0:01:10.2]} 20... Qf6
{[%clk 0:01:41.1]} 21. Be4 {[%clk 0:00:52.8]} 21... Qe7 {[%clk 0:01:20.6]} 22.
Kg2 {[%clk 0:00:40.6]} 22... Bd7 {[%clk 0:01:17.9]} 23. a3 {[%clk 0:00:35.7]}
23... Bd6 {[%clk 0:01:14.4]} 24. Rhe1 {[%clk 0:00:28.7]} 24... Bc6 {[%clk
0:01:06.4]} 25. d5 {[%clk 0:00:21.3]} 25... exd5 {[%clk 0:01:04.4]} 26. Bd3
{[%clk 0:00:19]} 26... Qd7 {[%clk 0:00:55.6]} 27. Nf3 {[%clk 0:00:14]} 27... Qg4
{[%clk 0:00:49.1]} 28. Qxg4 {[%clk 0:00:13.4]} 28... Nxg4 {[%clk 0:00:50]} 29.
h3 {[%clk 0:00:14]} 29... Nf6 {[%clk 0:00:49.7]} 30. Ne5 {[%clk 0:00:14.4]}
30... Bxe5 {[%clk 0:00:50.1]} 31. Rxe5 {[%clk 0:00:15.3]} 31... Rfe8 {[%clk
0:00:50.7]} 32. Rde1 {[%clk 0:00:13.3]} 32... Rxe5 {[%clk 0:00:50.5]} 33. Rxe5
{[%clk 0:00:14.2]} 33... Re8 {[%clk 0:00:51.2]} 34. f4 {[%clk 0:00:13.5]} 34...
Rxe5 {[%clk 0:00:46.3]} 35. fxe5 {[%clk 0:00:14.4]} 35... Nd7 {[%clk 0:00:47]}
0-1

[Event "*** SCC Grand Prix: Titled Tuesday Blitz"]
[Site "Chess.com"]
[Date "2020.06.23"]
[Round "9"]
[White "Volodar_Murzin"]
[Black "m_ezat"]
[Result "1-0"]
[WhiteElo "2717"]
[BlackElo "2546"]
[TimeControl "180+1"]
[EndTime "11:45:47 PDT"]
[Termination "Volodar_Murzin won by checkmate"]

1. e4 {[%clk 0:03:00.9]} 1... c6 {[%clk 0:02:56.5]} 2. d4 {[%clk 0:03:00.7]}
2... d5 {[%clk 0:02:57]} 3. f3 {[%clk 0:03:01.2]} 3... e6 {[%clk 0:02:56.5]} 4.
Nc3 {[%clk 0:03:00.4]} 4... Bb4 {[%clk 0:02:56.6]} 5. a3 {[%clk 0:03:00.2]} 5...
Bxc3+ {[%clk 0:02:54.5]} 6. bxc3 {[%clk 0:03:01.1]} 6... dxe4 {[%clk 0:02:55]}
7. Qe2 {[%clk 0:03:00.3]} 7... exf3 {[%clk 0:02:53.1]} 8. Nxf3 {[%clk
0:03:01.2]} 8... Nf6 {[%clk 0:02:53.2]} 9. Qe3 {[%clk 0:03:00.4]} 9... O-O
{[%clk 0:02:51.2]} 10. Bd3 {[%clk 0:02:59.3]} 10... c5 {[%clk 0:02:48.4]} 11.
O-O {[%clk 0:02:55.4]} 11... Nc6 {[%clk 0:02:47.1]} 12. Qf2 {[%clk 0:02:53.4]}
12... Qd5 {[%clk 0:02:01.7]} 13. Bg5 {[%clk 0:02:29.5]} 13... c4 {[%clk
0:01:28.3]} 14. Bxf6 {[%clk 0:02:23.9]} 14... cxd3 {[%clk 0:01:27.9]} 15. Qg3
{[%clk 0:02:23.7]} 15... g6 {[%clk 0:01:28.1]} 16. Ng5 {[%clk 0:02:03.8]} 16...
b6 {[%clk 0:00:51.3]} 17. cxd3 {[%clk 0:01:43.8]} 17... b5 {[%clk 0:00:38.2]}
18. Rab1 {[%clk 0:01:25.8]} 18... a6 {[%clk 0:00:27.4]} 19. Qh4 {[%clk 0:00:25]}
19... h5 {[%clk 0:00:25.8]} 20. Rf3 {[%clk 0:00:17.8]} 20... e5 {[%clk
0:00:22.4]} 21. Ne4 {[%clk 0:00:14.9]} 21... exd4 {[%clk 0:00:19.3]} 22. Bxd4
{[%clk 0:00:12.9]} 22... f5 {[%clk 0:00:16.6]} 23. Nf6+ {[%clk 0:00:12.6]} 23...
Rxf6 {[%clk 0:00:16.7]} 24. Qxf6 {[%clk 0:00:13.5]} 24... Ra7 {[%clk 0:00:15.8]}
25. Qh8+ {[%clk 0:00:08.5]} 25... Kf7 {[%clk 0:00:15.9]} 26. Qg7+ {[%clk
0:00:09]} 26... Ke8 {[%clk 0:00:14.5]} 27. Bxa7 {[%clk 0:00:07.5]} 27... Ne7
{[%clk 0:00:12.6]} 28. Re1 {[%clk 0:00:07.4]} 28... Bb7 {[%clk 0:00:11.9]} 29.
Qxe7# {[%clk 0:00:06.8]} 1-0